bitfinex/quotes_BTCUSD_20260308
["timestamp","ask_amount","ask_price","bid_price","bid_amount"]
[1772954522662,0.00148,67362.0,67347.0,0.07424235]
[1772954522663,0.07422051,67367.0,67352.0,0.0574004]
[1772954522872,0.00148,67366.0,67352.0,0.0574004]
[1772954523181,0.07422051,67367.0,67352.0,0.0574004]
[1772954523403,0.00148,67365.0,67352.0,0.0574004]
[1772954523602,0.14838081,67373.0,67351.0,0.00148]
[1772954523804,0.0742148,67372.0,67355.0,0.04391044]
[1772954524127,0.0742148,67372.0,67356.0,0.01338602]
[1772954524283,0.0742148,67372.0,67357.0,0.07423133]
[1772954524603,0.0742148,67372.0,67357.0,0.08909735]
[1772954524902,0.09062101,67373.0,67357.0,0.08909735]
[1772954525207,0.09062101,67373.0,67358.0,0.01371403]
[1772954526263,0.0742159,67371.0,67357.0,0.07571133]
[1772954526512,0.01788621,67370.0,67357.0,0.07571133]
[1772954527683,0.01788621,67370.0,67357.0,0.07423133]
[1772954530429,0.01640621,67370.0,67357.0,0.08735507]
[1772954530630,0.00148,67371.0,67357.0,0.08735507]
[1772954530631,0.00148,67371.0,67357.0,0.07423133]
[1772954530833,0.09167113,67371.0,67357.0,0.07423133]
[1772954530992,0.00148,67371.0,67357.0,0.08725095]
[1772954531184,0.07569605,67371.0,67357.0,0.08725095]
[1772954533463,0.09167113,67371.0,67357.0,0.08725095]
[1772954534351,0.00148,67371.0,67358.0,0.01317656]
[1772954534914,0.0744356,67372.0,67358.0,0.01317656]
[1772954535112,0.00148,67371.0,67358.0,0.01317656]
[1772954535335,0.00148,67371.0,67359.0,0.07422913]
[1772954536422,0.0744356,67372.0,67359.0,0.07422913]
[1772954536622,0.00148,67371.0,67359.0,0.07422913]
[1772954537022,0.00148,67370.0,67359.0,0.07422913]
[1772954537961,0.07569781,67370.0,67359.0,0.07422913]
[1772954538411,0.07569781,67370.0,67358.0,0.08740569]
[1772954538412,0.04701044,67368.0,67356.0,0.0002]
[1772954538611,0.01597508,67365.0,67351.0,0.07423731]
[1772954538832,0.01597508,67361.0,67351.0,0.07423731]
[1772954539039,0.01597508,67359.0,67351.0,0.07423731]
[1772954539576,0.12319912,67370.0,67351.0,0.07423731]
[1772954539577,0.04701044,67369.0,67351.0,0.07423731]
[1772954539771,0.07422251,67365.0,67351.0,0.07423731]
[1772954539935,0.01597508,67364.0,67351.0,0.07423731]
[1772954541159,0.04701044,67363.0,67351.0,0.07443731]
[1772954541358,0.01597508,67360.0,67351.0,0.07443731]
[1772954542137,0.01597508,67360.0,67351.0,0.0002]
[1772954543191,0.04701044,67359.0,67351.0,0.0002]
[1772954543390,0.01597508,67356.0,67351.0,0.0002]
[1772954543589,0.07422823,67360.0,67348.0,0.07423794]
[1772954543590,0.01597508,67354.0,67348.0,0.07127794]
[1772954543824,0.01000014,67354.0,67348.0,0.07127794]
[1772954544764,0.07422749,67361.0,67348.0,0.07167637]
[1772954544978,0.06298552,67361.0,67348.0,0.07167637]
[1772954545469,0.00148,67360.0,67349.0,0.01562811]
[1772954546479,0.0742241,67364.0,67350.0,0.08986715]
[1772954546677,0.00148,67363.0,67350.0,0.08986715]
[1772954547161,0.01597508,67358.0,67349.0,0.0742396]
[1772954547397,0.01597508,67357.0,67349.0,0.0742396]
[1772954548216,0.01597508,67357.0,67350.0,0.0002]
[1772954548414,0.00148,67356.0,67350.0,0.0002]
[1772954548712,0.09020718,67357.0,67350.0,0.0002]
[1772954548921,0.00148,67356.0,67350.0,0.0002]
[1772954549698,0.07571315,67356.0,67350.0,0.0002]
[1772954550586,0.09168823,67356.0,67350.0,0.0002]
[1772954550794,0.05857666,67399.0,67350.0,0.0002]
[1772954550795,0.00148,67365.0,67353.0,0.04391044]
[1772954550999,0.00148,67365.0,67353.0,0.01562811]
[1772954551348,0.00148,67365.0,67355.0,0.01562811]
[1772954552526,0.00022001,67370.0,67355.0,0.01562811]
[1772954552702,0.00148,67366.0,67355.0,0.01562811]
[1772954552902,0.00148,67366.0,67357.0,0.01562811]
[1772954554117,0.00022001,67370.0,67357.0,0.01562811]
[1772954554306,0.00148,67366.0,67357.0,0.01562811]
[1772954555232,0.00148,67366.0,67358.0,0.08985834]
[1772954555949,0.00170001,67366.0,67358.0,0.08985834]
[1772954556354,0.00022001,67366.0,67358.0,0.08985834]
[1772954556558,0.00170001,67366.0,67358.0,0.08985834]
[1772954556857,0.00022001,67366.0,67358.0,0.08985834]
[1772954557060,0.00170001,67366.0,67358.0,0.08985834]
[1772954557426,0.00022001,67366.0,67358.0,0.08985834]
[1772954557629,0.00170001,67366.0,67358.0,0.08985834]
[1772954558064,0.00022001,67370.0,67358.0,0.08985834]
[1772954558228,0.00148,67369.0,67358.0,0.07423023]
[1772954558650,0.00022001,67377.0,67361.0,0.01494685]
[1772954558864,0.00148,67371.0,67363.0,0.01494685]
[1772954559242,0.00148,67371.0,67364.0,0.07422362]
[1772954559550,0.00148,67374.0,67364.0,0.08917047]
[1772954559911,0.00148,67374.0,67364.0,0.07422362]
[1772954560146,0.00148,67374.0,67365.0,0.01494685]
[1772954561619,0.00148,67374.0,67366.0,0.07422141]
[1772954562625,0.00022001,67377.0,67367.0,0.01494685]
[1772954562626,0.00148,67373.0,67367.0,0.01494685]
[1772954562825,0.00022001,67377.0,67367.0,0.01494685]
[1772954563065,0.00723,67376.0,67367.0,0.01494685]
[1772954563414,0.00575,67376.0,67367.0,0.01494685]
[1772954563746,0.00723,67376.0,67368.0,0.07421921]
[1772954563947,0.00575,67376.0,67368.0,0.08916606]
[1772954564554,0.00022001,67374.0,67366.0,0.07422141]
[1772954564714,0.00022001,67374.0,67359.0,0.07422906]
[1772954564715,0.01532042,67371.0,67359.0,0.07422906]
[1772954565047,0.01532042,67369.0,67359.0,0.07422906]
[1772954565205,0.00148,67370.0,67359.0,0.07422906]
[1772954566464,0.00148,67370.0,67359.0,0.01494685]
[1772954567286,0.01532042,67369.0,67357.0,0.07443023]
[1772954567655,0.01532042,67368.0,67357.0,0.07443023]
[1772954567854,0.01532042,67367.0,67357.0,0.07443023]
[1772954568473,0.01532042,67365.0,67357.0,0.0002]
[1772954568672,0.01680042,67364.0,67357.0,0.0002]
[1772954570809,0.01680042,67364.0,67350.0,0.07631794]
[1772954570810,0.04434242,67363.0,67350.0,0.0006]
[1772954571111,0.07570376,67364.0,67348.0,0.00039843]
[1772954571112,0.04434242,67356.0,67348.0,0.07463899]
[1772954571260,0.01680042,67355.0,67348.0,0.07463899]
[1772954571463,0.01680042,67355.0,67348.0,0.00039843]
[1772954571918,0.01680042,67355.0,67348.0,0.07463946]
[1772954572617,0.01680042,67355.0,67350.0,0.0002]
[1772954572775,0.00148,67355.0,67350.0,0.0002]
[1772954573114,0.00148,67355.0,67348.0,0.07463946]
[1772954578458,0.01532042,67354.0,67348.0,0.07463946]
[1772954579491,0.01532042,67353.0,67346.0,0.07424125]
[1772954579713,0.01517042,67353.0,67346.0,9.473e-05]
[1772954580260,0.01517042,67353.0,67348.0,0.0002]
[1772954580908,0.01517042,67353.0,67344.0,0.000513]
[1772954581185,0.01517042,67353.0,67343.0,0.07444588]
[1772954581558,0.01532042,67351.0,67343.0,0.0002]
[1772954583627,0.01528052,67349.0,67341.0,0.06816897]
[1772954583795,0.01528052,67347.0,67341.0,0.06816897]
[1772954584553,0.01528052,67347.0,67340.0,0.07516079]
[1772954584733,0.01528052,67347.0,67340.0,0.07516093]
[1772954585733,0.074243,67347.0,67340.0,0.07516093]
[1772954585903,0.01528052,67346.0,67340.0,0.07516093]
[1772954586731,0.01528052,67346.0,67340.0,0.0009114]
[1772954586931,0.01528052,67346.0,67337.0,0.0002]
[1772954588483,0.0148673,67344.0,67337.0,0.0002]
[1772954588861,0.0148673,67344.0,67331.0,0.07450821]
[1772954588862,0.0148673,67344.0,67331.0,0.0002489]
[1772954589062,0.0148673,67340.0,67326.0,0.07446521]
[1772954589245,0.0148673,67338.0,67326.0,0.07446521]
[1772954590474,0.07425338,67337.0,67326.0,0.07446521]
[1772954590877,0.08912068,67337.0,67326.0,0.07446521]
[1772954591457,0.0148673,67336.0,67326.0,0.0002]
[1772954592796,0.07425558,67335.0,67326.0,0.0002]
[1772954594371,0.08912288,67335.0,67326.0,0.0002]
[1772954594968,0.0148673,67334.0,67322.0,0.07749966]
[1772954595170,0.00148,67333.0,67322.0,0.07749966]
[1772954595373,0.0136323,67333.0,67322.0,0.07749966]
[1772954595570,0.0136323,67333.0,67322.0,0.00323]
[1772954596180,0.0136323,67333.0,67322.0,0.07749945]
[1772954596181,0.00148,67333.0,67322.0,0.07749945]
[1772954596381,0.00148,67333.0,67323.0,0.0149666]
[1772954596590,0.00148,67333.0,67324.0,0.0149666]
[1772954596794,0.00011934,67340.0,67326.0,0.07426551]
[1772954597124,0.00011934,67340.0,67330.0,0.0149666]
[1772954597125,0.00148,67339.0,67330.0,0.0149666]
[1772954597277,0.00133,67339.0,67330.0,0.0149666]
[1772954599289,0.00011934,67340.0,67332.0,0.0149666]
[1772954599485,0.00148,67339.0,67335.0,0.0149666]
[1772954599689,0.00148,67338.0,67336.0,0.05609048]
[1772954599889,0.00148,67337.0,67336.0,0.05620982]
[1772954600190,0.00148,67337.0,67336.0,0.04124322]
[1772954600395,0.00148,67338.0,67336.0,0.04124322]
[1772954600591,0.00148,67338.0,67336.0,0.02573099]
[1772954600851,0.00248,67338.0,67336.0,0.02573099]
[1772954601026,0.00148,67338.0,67336.0,0.02573099]
[1772954601391,0.00148,67338.0,67336.0,0.00011934]
[1772954601629,0.00148,67338.0,67331.0,0.07425999]
[1772954601830,0.0015996,67338.0,67331.0,0.07425999]
[1772954603036,0.0015996,67338.0,67331.0,0.09987164]
[1772954603834,0.0015996,67338.0,67331.0,0.07425999]
[1772954605450,0.0015996,67338.0,67330.0,0.02561165]
[1772954606339,0.00148,67337.0,67331.0,0.02561165]
[1772954608090,0.00148,67337.0,67332.0,0.07425889]
[1772954608284,0.00148,67337.0,67333.0,0.02561165]
[1772954608509,0.0001196,67338.0,67333.0,0.02561165]
[1772954610698,0.0001196,67338.0,67334.0,0.07425669]
[1772954611158,0.00148,67337.0,67335.0,0.02561165]
[1772954611591,0.00148,67337.0,67334.0,0.07425669]
[1772954613565,0.00148,67337.0,67331.0,0.0002]
[1772954617059,0.00148,67337.0,67328.0,0.0742622]
[1772954617373,0.07573399,67337.0,67328.0,0.0742622]
[1772954617791,0.07573399,67337.0,67329.0,0.0002]
[1772954617960,0.07573399,67337.0,67327.0,0.03336415]
[1772954618286,0.07573399,67337.0,67331.0,0.0002]
[1772954618513,0.075954,67337.0,67331.0,0.0002]
[1772954624535,0.074474,67337.0,67331.0,0.0002]
[1772954624738,0.00148,67337.0,67334.0,0.03991597]
[1772954624966,0.00148,67337.0,67336.0,0.03991597]
[1772954625281,0.00148,67337.0,67336.0,0.06718518]
[1772954625629,0.07424902,67341.0,67336.0,0.02726921]
[1772954625873,0.00148,67340.0,67332.0,0.06718518]
[1772954626123,0.00148,67340.0,67332.0,0.06730478]
[1772954627406,0.07425117,67339.0,67332.0,0.02738881]
[1772954627599,0.07425117,67339.0,67332.0,0.0001196]
[1772954631154,0.07595118,67340.0,67332.0,0.0001196]
[1772954631155,0.00170001,67340.0,67333.0,0.02726921]
[1772954631528,0.00148,67339.0,67337.0,0.02726921]
[1772954631936,0.00148,67338.0,67334.0,0.03991597]
[1772954632149,0.00148,67338.0,67335.0,0.02461462]
[1772954633495,0.00148,67338.0,67333.0,0.07425692]
[1772954633695,0.07425236,67338.0,67324.0,0.07461748]
[1772954633917,0.00148,67337.0,67327.0,0.03991597]
[1772954634130,0.00148,67337.0,67327.0,0.06453059]
[1772954634306,0.07437196,67338.0,67328.0,0.03991597]
[1772954634506,0.00148,67337.0,67328.0,0.03991597]
[1772954634893,0.00148,67337.0,67328.0,0.06453059]
[1772954635299,0.07425448,67336.0,67329.0,0.0742622]
[1772954636543,0.03986938,67336.0,67324.0,0.07461748]
[1772954636724,0.00181961,67338.0,67328.0,0.03991597]
[1772954636926,0.00181961,67338.0,67331.0,0.02461462]
[1772954637127,0.0760719,67338.0,67331.0,0.06453059]
[1772954637524,0.0760719,67338.0,67326.0,0.03991597]
[1772954637719,0.0760719,67338.0,67325.0,0.07426661]
[1772954637943,0.0760719,67338.0,67324.0,0.07461748]
[1772954638150,0.0760719,67338.0,67324.0,0.07461737]
[1772954640316,0.0760719,67338.0,67325.0,0.03991597]
[1772954640523,0.00148,67337.0,67328.0,0.02461462]
[1772954640738,0.07573442,67337.0,67329.0,0.13879279]
[1772954641313,0.07573442,67337.0,67329.0,0.06453059]
[1772954641517,0.00148,67336.0,67329.0,0.06453059]
[1772954641720,0.00148,67336.0,67329.0,0.03991597]
[1772954642146,0.00148,67336.0,67327.0,0.07426363]
[1772954642526,0.00148,67336.0,67328.0,0.06312204]
[1772954643549,0.00148,67335.0,67328.0,0.13738481]
[1772954643957,0.07425442,67337.0,67327.0,0.07426363]
[1772954644162,0.00148,67334.0,67327.0,0.07426363]
[1772954644877,0.00148,67333.0,67329.0,0.0002]
[1772954645279,0.00148,67333.0,67330.0,0.06312204]
[1772954645435,0.07425442,67337.0,67330.0,0.06312204]
[1772954645636,0.00148,67336.0,67330.0,0.06312204]
[1772954646467,0.00148,67336.0,67331.0,0.07425999]
[1772954646667,0.00148,67335.0,67332.0,0.06312204]
[1772954648399,0.07459192,67338.0,67333.0,0.03850742]
[1772954648400,0.00181961,67338.0,67333.0,0.03850742]
[1772954648577,0.00181961,67338.0,67335.0,0.03850742]
[1772954648824,0.00181961,67338.0,67335.0,0.06312204]
[1772954649395,0.00181961,67338.0,67331.0,0.02461462]
[1772954649613,0.00181961,67338.0,67331.0,0.06312204]
[1772954650747,0.00148,67339.0,67329.0,0.0002]
[1772954650919,0.00148,67339.0,67330.0,0.03850742]
[1772954651238,0.00148,67339.0,67333.0,0.03850742]
[1772954651636,0.00148,67339.0,67336.0,0.02461462]
[1772954651851,0.00148,67339.0,67336.0,0.06312204]
[1772954651991,0.00148,67339.0,67329.0,0.03882702]
[1772954652442,0.00148,67339.0,67330.0,0.06312204]
[1772954652842,0.00148,67339.0,67332.0,0.06312204]
[1772954653664,0.00170001,67339.0,67332.0,0.06312204]
[1772954654452,0.07425227,67338.0,67329.0,0.07458127]
[1772954654767,0.07595228,67339.0,67329.0,0.07458127]
[1772954656734,0.00170001,67339.0,67329.0,0.07458127]
[1772954656938,0.07595123,67339.0,67330.0,0.05148133]
[1772954657549,0.00148,67338.0,67329.0,0.07458127]
[1772954657883,0.00148,67338.0,67331.0,0.05148133]
[1772954658764,0.00148,67338.0,67329.0,0.07458127]
[1772954658973,0.00148,67338.0,67330.0,0.03850742]
[1772954659161,0.00148,67338.0,67329.0,0.07458127]
[1772954659162,0.00148,67338.0,67331.0,0.03850742]
[1772954659359,0.00148,67338.0,67331.0,0.0523585]
[1772954660901,0.00148,67338.0,67329.0,0.07458127]
[1772954661409,0.07573257,67338.0,67329.0,0.07458127]
[1772954662191,0.07573257,67338.0,67329.0,0.07458148]
[1772954663324,0.07599917,67338.0,67329.0,0.07458148]
[1772954667951,0.07599917,67338.0,67329.0,0.0003196]
[1772954668138,0.07599917,67338.0,67324.0,0.00035]
[1772954668340,0.11368694,67338.0,67324.0,0.00035]
[1772954668654,0.11368694,67338.0,67324.0,0.0746175]
[1772954669238,0.11368694,67338.0,67329.0,0.0002]
[1772954669418,0.03756817,67337.0,67324.0,0.00035]
[1772954669617,0.03756817,67337.0,67318.0,0.0009114]
[1772954669618,0.04901465,67334.0,67318.0,0.0009114]
[1772954669848,0.07611877,67338.0,67315.0,0.05667748]
[1772954670005,0.03581642,67337.0,67315.0,0.05667748]
[1772954670452,0.07563877,67338.0,67315.0,0.05667748]
[1772954670754,0.00148,67337.0,67315.0,0.05667748]
[1772954671135,0.07425448,67336.0,67313.0,0.07427984]
[1772954671358,0.00148,67335.0,67314.0,0.0523585]
[1772954671528,0.00148,67335.0,67313.0,0.07427984]
[1772954671848,0.03601141,67334.0,67312.0,0.07427764]
[1772954672033,0.0091331,67333.0,67313.0,0.03850742]
[1772954672346,0.0091331,67333.0,67312.0,0.07427764]
[1772954672347,0.0091331,67329.0,67312.0,0.03850742]
[1772954672763,0.00148,67328.0,67316.0,0.03664479]
[1772954672938,0.00148,67328.0,67318.0,0.03664479]
[1772954673140,0.0001233,67333.0,67320.0,0.07427213]
[1772954673347,0.00148,67327.0,67320.0,0.07427213]
[1772954675325,0.07426551,67326.0,67320.0,0.07427213]
[1772954675530,0.07426551,67326.0,67318.0,0.07427213]
[1772954675936,0.00892686,67325.0,67316.0,0.07427576]
[1772954676134,0.00892686,67325.0,67314.0,0.0002]
[1772954676778,0.00148,67324.0,67314.0,0.0002]
[1772954676976,0.00148,67323.0,67317.0,0.01297391]
[1772954677133,0.00148,67323.0,67319.0,0.0496187]
[1772954677334,0.08731738,67327.0,67319.0,0.0496187]
[1772954677537,0.00148,67326.0,67319.0,0.0496187]
[1772954678951,0.00148,67325.0,67319.0,0.07427305]
[1772954679148,0.00148,67325.0,67322.0,0.04851771]
[1772954679922,0.00148,67325.0,67322.0,0.03664479]
[1772954680124,0.00148,67325.0,67321.0,0.07427093]
[1772954680774,0.00148,67325.0,67322.0,0.01187292]
[1772954680952,0.0001233,67330.0,67322.0,0.01187292]
[1772954681152,0.00148,67324.0,67323.0,0.04851771]
[1772954681303,0.0001233,67330.0,67323.0,0.04851771]
[1772954681504,0.00148,67324.0,67323.0,0.12278653]
[1772954682433,0.00148,67325.0,67323.0,0.12278653]
[1772954682954,0.00148,67329.0,67323.0,0.07426882]
[1772954683252,0.07425512,67336.0,67329.0,0.03664479]
[1772954683410,0.00148,67330.0,67329.0,0.03664479]
[1772954683619,0.07425604,67335.0,67329.0,0.03664479]
[1772954683926,0.07573604,67335.0,67330.0,0.04851771]
[1772954684128,0.07425604,67335.0,67330.0,0.04851771]
[1772954684303,0.00148,67334.0,67330.0,0.04851771]
[1772954684758,0.00148,67333.0,67330.0,0.04851771]
[1772954684914,0.00148,67333.0,67329.0,0.07426211]
[1772954684915,0.00022001,67339.0,67329.0,0.07426211]
[1772954685115,0.00148,67338.0,67329.0,0.07438171]
[1772954685340,0.00148,67338.0,67331.0,0.01187292]
[1772954685537,0.07573237,67338.0,67332.0,0.07425889]
[1772954685867,0.00148,67337.0,67332.0,0.07425889]
[1772954686161,0.00148,67337.0,67332.0,0.1227766]
[1772954686939,0.00148,67336.0,67334.0,0.01187292]
[1772954687137,0.00148,67336.0,67334.0,0.04851771]
[1772954687552,0.00148,67336.0,67334.0,0.1227733]
[1772954688305,0.00148,67336.0,67332.0,0.07425864]
[1772954688450,0.00148,67336.0,67332.0,0.12277635]
[1772954688778,0.00148,67335.0,67332.0,0.12277635]
[1772954690658,0.0742486,67342.0,67334.0,0.03664479]
[1772954690863,0.00148,67341.0,67335.0,0.04851771]
[1772954691483,0.00148,67340.0,67336.0,0.03664479]
[1772954691900,0.00148,67340.0,67332.0,0.12277635]
[1772954695235,0.07573096,67340.0,67332.0,0.12277635]
[1772954696089,0.07573096,67340.0,67332.0,0.11090335]
[1772954696738,0.07573096,67340.0,67333.0,0.03664479]
[1772954697545,0.07573096,67340.0,67333.0,0.11090236]
[1772954697546,0.07595097,67340.0,67333.0,0.11090236]
[1772954700366,0.07447097,67340.0,67333.0,0.11090236]
[1772954700525,0.07573148,67339.0,67333.0,0.11090236]
[1772954700885,0.07573148,67339.0,67333.0,0.07425757]
[1772954701984,0.00777069,67338.0,67321.0,0.07426995]
[1772954702181,0.00777069,67336.0,67320.0,0.0002]
[1772954702765,0.00771812,67334.0,67320.0,0.0002]
[1772954703088,0.00771812,67332.0,67320.0,0.0002]
[1772954704601,0.00771812,67332.0,67325.0,0.0002]
[1772954704906,0.08188637,67331.0,67325.0,0.0002]
[1772954706810,0.07425999,67331.0,67325.0,0.0002]
[1772954707145,0.03333142,67330.0,67318.0,0.0003433]
[1772954707283,0.00753533,67328.0,67314.0,0.0002]
[1772954707480,0.00753533,67326.0,67314.0,0.0002]
[1772954708700,0.03333142,67325.0,67314.0,0.0002]
[1772954708930,0.01156634,67322.0,67314.0,0.0002]
[1772954709225,0.01156634,67322.0,67303.0,0.07429036]
[1772954709226,0.03333142,67319.0,67299.0,0.03365921]
[1772954709441,0.01156634,67316.0,67299.0,0.03365921]
[1772954709641,0.01156634,67314.0,67296.0,0.0742981]
[1772954709864,0.00148,67315.0,67295.0,0.04054771]
[1772954709865,0.01486114,67315.0,67295.0,0.04054771]
[1772954710068,0.04903663,67310.0,67295.0,0.0068885]
[1772954710199,0.04903663,67310.0,67295.0,0.08118781]
[1772954710200,0.01304634,67309.0,67295.0,0.08118781]
[1772954710404,0.01289634,67309.0,67295.0,0.08118781]
[1772954710627,0.01301585,67309.0,67295.0,0.08118781]
[1772954711023,0.01156634,67307.0,67295.0,0.08118781]
[1772954711408,0.01156634,67307.0,67295.0,0.0068885]
[1772954712009,0.11855702,67323.0,67296.0,0.01220234]
[1772954712226,0.00148,67318.0,67311.0,0.03365921]
[1772954712420,0.00148,67318.0,67297.0,0.00148]
[1772954712421,0.00148,67317.0,67312.0,0.03365921]
[1772954712620,0.00148,67316.0,67314.0,0.03365921]
[1772954714262,0.00148,67316.0,67312.0,0.07428071]
[1772954714640,0.00148,67316.0,67313.0,0.03365921]
[1772954716252,0.00148,67316.0,67315.0,0.04586155]
[1772954716452,0.00148,67316.0,67311.0,0.07428145]
[1772954717304,0.00148,67316.0,67310.0,0.07428287]
[1772954719517,0.07575726,67316.0,67310.0,0.07428287]
[1772954719670,0.07575726,67316.0,67308.0,0.12014471]
[1772954720266,0.07575726,67316.0,67311.0,0.0002]
[1772954721122,0.00148,67316.0,67311.0,0.0002]
[1772954721481,0.07575662,67316.0,67311.0,0.0002]
[1772954725112,0.07575662,67316.0,67304.0,0.0002]
[1772954725331,0.01156634,67315.0,67304.0,0.0002]
[1772954725542,0.07575662,67316.0,67305.0,0.01220234]
[1772954725739,0.07575662,67316.0,67305.0,0.04586155]
[1772954726017,0.00148,67315.0,67305.0,0.04586155]
[1772954726222,0.00148,67314.0,67304.0,0.0002]
[1772954726638,0.07427102,67321.0,67307.0,0.03365921]
[1772954726841,0.07427102,67321.0,67309.0,0.03365921]
[1772954727039,0.00148,67320.0,67309.0,0.03365921]
[1772954727458,0.00148,67319.0,67310.0,0.07428316]
[1772954727765,0.00148,67319.0,67311.0,0.0002]
[1772954728777,0.07426772,67324.0,67311.0,0.0002]
[1772954728944,0.00148,67322.0,67311.0,0.0002]
[1772954729742,0.07426772,67324.0,67311.0,0.0002]
[1772954729947,0.01304634,67322.0,67311.0,0.0002]
[1772954732295,0.07427102,67321.0,67311.0,0.0002]
[1772954736701,0.07426835,67324.0,67312.0,0.0319752]
[1772954736902,0.00148,67320.0,67311.0,0.0002]
[1772954738427,0.07427323,67319.0,67311.0,0.0002]
[1772954738813,0.08592312,67319.0,67311.0,0.0002]
[1772954739359,0.01164989,67318.0,67311.0,0.0002]
[1772954740552,0.07427544,67317.0,67311.0,0.0002]
[1772954741577,0.08592533,67318.0,67311.0,0.0002]
[1772954741755,0.07427544,67318.0,67311.0,0.0002]
[1772954743500,0.00148,67317.0,67311.0,0.0002]
[1772954746192,0.0757561,67317.0,67311.0,0.0002]
[1772954747196,0.0742761,67317.0,67311.0,0.0002]
[1772954747402,0.00148,67316.0,67311.0,0.0002]
[1772954749038,0.01164989,67315.0,67304.0,0.0002]
[1772954749747,0.03278972,67312.0,67299.0,0.07429448]
[1772954749933,0.01164989,67311.0,67298.0,0.07429637]
[1772954750128,0.01164989,67309.0,67298.0,0.07429637]
[1772954751157,0.00148,67310.0,67297.0,0.07449641]
[1772954751451,0.14845897,67318.0,67297.0,0.07449641]
[1772954751452,0.00148,67309.0,67299.0,0.0319752]
[1772954751650,0.00148,67308.0,67302.0,0.01149533]
[1772954751852,0.07427741,67316.0,67304.0,0.0319752]
[1772954752056,0.00148,67315.0,67304.0,0.0319752]
[1772954752260,0.00148,67314.0,67304.0,0.0319752]
[1772954753857,0.07427985,67313.0,67303.0,0.07429089]
[1772954757874,0.00148,67312.0,67303.0,0.07429089]
[1772954758674,0.07576114,67312.0,67303.0,0.07429089]
[1772954759983,0.07449051,67322.0,67304.0,0.01149533]
[1772954760143,0.07427278,67320.0,67307.0,0.0319752]
[1772954760348,0.07427278,67320.0,67309.0,0.01149533]
[1772954760566,0.00148,67320.0,67309.0,0.01149533]
[1772954760775,0.00148,67321.0,67311.0,0.01149533]
[1772954761582,0.00148,67321.0,67310.0,0.07428316]
[1772954763047,0.00148,67321.0,67307.0,0.07428384]
[1772954763048,0.07575158,67321.0,67307.0,0.07428384]
[1772954763249,0.01079565,67320.0,67307.0,0.07428384]
[1772954765067,0.07427323,67319.0,67307.0,0.07428384]
[1772954765254,0.07427323,67319.0,67308.0,0.01172822]
[1772954766937,0.07427323,67319.0,67307.0,0.07428384]
[1772954767259,0.07427323,67319.0,67306.0,0.08601469]
[1772954767943,0.07427323,67319.0,67307.0,0.01172822]
[1772954770118,0.07427323,67319.0,67308.0,0.07428537]
[1772954770450,0.01079565,67320.0,67308.0,0.07428537]
[1772954771862,0.08506798,67320.0,67308.0,0.07428537]
[1772954772822,0.07427233,67320.0,67307.0,0.07428537]
[1772954773142,0.07613469,67321.0,67309.0,0.01168806]
[1772954777335,0.07613469,67321.0,67310.0,0.07428316]
[1772954779550,0.00037001,67324.0,67309.0,0.01168806]
[1772954779701,0.00148,67323.0,67308.0,0.07428316]
[1772954780226,0.00148,67322.0,67309.0,0.01168806]
[1772954781409,0.00148,67322.0,67310.0,0.07428316]
[1772954781610,0.00148,67322.0,67311.0,0.01168806]
[1772954782005,0.07463823,67324.0,67310.0,0.07428316]
[1772954782006,0.00148,67321.0,67310.0,0.07428316]
[1772954784331,0.01807141,67322.0,67309.0,0.07448316]
[1772954784571,0.01955141,67322.0,67309.0,0.07448316]
[1772954786048,0.00170001,67322.0,67309.0,0.0002]
[1772954786249,0.0178514,67321.0,67309.0,0.0002]
[1772954790701,0.0178514,67319.0,67309.0,0.0002]
[1772954791669,0.0178514,67318.0,67309.0,0.0002]
[1772954801683,0.00170001,67322.0,67309.0,0.02926004]
[1772954801887,0.00170001,67322.0,67310.0,0.1033432]
[1772954802254,0.00170001,67322.0,67310.0,0.07428316]
[1772954802473,0.00022001,67322.0,67310.0,0.07428316]
[1772954802672,0.00148,67321.0,67310.0,0.07428316]
[1772954802838,0.0193314,67321.0,67310.0,0.07428316]
[1772954803869,0.0193314,67321.0,67309.0,0.0002]
[1772954813488,0.00148,67320.0,67309.0,0.0002]
[1772954814703,0.00148,67320.0,67309.0,0.02926004]
[1772954815859,0.00148,67320.0,67310.0,0.07428316]
[1772954818477,0.00148,67320.0,67309.0,0.07448316]
[1772954819478,0.0178514,67321.0,67309.0,0.07448316]
[1772954819707,0.00148,67320.0,67309.0,0.07448316]
[1772954823964,0.0178514,67319.0,67309.0,0.0002]
[1772954824247,0.0178514,67317.0,67309.0,0.0002]
[1772954824859,0.03061006,67316.0,67307.0,0.07428316]
[1772954825101,0.0178514,67314.0,67307.0,0.07428316]
[1772954825298,0.0193314,67314.0,67307.0,0.07428316]
[1772954825735,0.0193314,67314.0,67305.0,0.07428647]
[1772954825910,0.0193314,67314.0,67302.0,0.0002]
[1772954825911,0.03061006,67313.0,67302.0,0.0002]
[1772954826123,0.00148,67314.0,67302.0,0.0002]
[1772954828711,0.00148,67314.0,67305.0,0.07428868]
[1772954830666,0.07575878,67314.0,67305.0,0.07428868]
[1772954830883,0.0178514,67313.0,67305.0,0.07428868]
[1772954832633,0.0178514,67312.0,67305.0,0.07428868]
[1772954835160,0.0178514,67311.0,67305.0,0.07428868]
[1772954835361,0.0178514,67311.0,67303.0,0.0521502]
[1772954835803,0.0178514,67311.0,67305.0,0.04372298]
[1772954837452,0.0178514,67311.0,67302.0,0.0002]
[1772954837823,0.0178514,67311.0,67305.0,0.0002]
[1772954838028,0.07428269,67311.0,67299.0,0.07429482]
[1772954838228,0.07428269,67311.0,67298.0,0.07461879]
[1772954838582,0.0178514,67309.0,67298.0,0.07461879]
[1772954838789,0.0178514,67307.0,67298.0,0.07461879]
[1772954839936,0.07428758,67306.0,67298.0,0.07461879]
[1772954840144,0.09213898,67306.0,67298.0,0.07461879]
[1772954840840,0.00148,67305.0,67298.0,0.07461879]
[1772954841299,0.0178514,67304.0,67297.0,0.0002]
[1772954841506,0.0178514,67304.0,67296.0,0.0430161]
[1772954841899,0.07429089,67303.0,67296.0,0.0430161]
[1772954842115,0.0178514,67302.0,67296.0,0.0430161]
[1772954842347,0.0178514,67302.0,67295.0,0.00361731]
[1772954845678,0.0178514,67300.0,67295.0,0.00361731]
[1772954845855,0.0178514,67298.0,67295.0,0.00361731]
[1772954847741,0.0193314,67299.0,67295.0,0.00361731]
[1772954850091,0.00148,67299.0,67295.0,0.00361731]
[1772954851899,0.07577542,67299.0,67295.0,0.00361731]
[1772954852265,0.01084738,67298.0,67295.0,0.00361731]
[1772954853578,0.07429751,67297.0,67295.0,0.00361731]
[1772954853788,0.01084738,67296.0,67295.0,0.00361731]
[1772954855517,0.01084738,67296.0,67291.0,0.0001225]
[1772954855835,0.07429751,67297.0,67289.0,0.07430582]